[Event "Live Chess"]
[Site "Chess.com"]
[Date "2024.06.02"]
[Round "-"]
[White "SimonBoy1"]
[Black "ZatixMajor"]
[Result "0-1"]
[WhiteElo "1521"]
[BlackElo "2031"]
[TimeControl "300"]
[EndTime "3:37:03 PDT"]
[Termination "ZatixMajor won by resignation"]

1. e4 {[%clk 0:04:59.1]} 1... c5 {[%clk 0:04:59]} 2. Nf3 {[%clk 0:04:58.1]} 2...
Nc6 {[%clk 0:04:58.5]} 3. d4 {[%clk 0:04:56.9]} 3... cxd4 {[%clk 0:04:58.4]} 4.
Nxd4 {[%clk 0:04:56.4]} 4... g6 {[%clk 0:04:58.1]} 5. Nc3 {[%clk 0:04:55.9]}
5... Bg7 {[%clk 0:04:57.3]} 6. Be3 {[%clk 0:04:55.6]} 6... Nf6 {[%clk
0:04:56.8]} 7. f3 {[%clk 0:04:53.3]} 7... O-O {[%clk 0:04:56.1]} 8. Qd2 {[%clk
0:04:53]} 8... d5 {[%clk 0:04:55.7]} 9. exd5 {[%clk 0:04:51]} 9... Nxd5 {[%clk
0:04:55.6]} 10. O-O-O {[%clk 0:04:49.9]} 10... Nxe3 {[%clk 0:04:54.1]} 11. Qxe3
{[%clk 0:04:49]} 11... Bxd4 {[%clk 0:04:53.6]} 12. Rxd4 {[%clk 0:04:46.5]} 12...
Qxd4 {[%clk 0:04:51.7]} 13. Qxd4 {[%clk 0:04:46.4]} 13... Nxd4 {[%clk
0:04:51.6]} 0-1

[Event "Live Chess"]
[Site "Chess.com"]
[Date "2024.06.02"]
[Round "-"]
[White "TigerTank70"]
[Black "Tunyk_Vladyslav"]
[Result "0-1"]
[WhiteElo "2213"]
[BlackElo "2406"]
[TimeControl "300"]
[EndTime "3:37:18 PDT"]
[Termination "Tunyk_Vladyslav won by resignation"]

1. e4 {[%clk 0:04:56]} 1... e6 {[%clk 0:04:59.2]} 2. d4 {[%clk 0:04:54.4]} 2...
d5 {[%clk 0:04:58.8]} 3. e5 {[%clk 0:04:53.3]} 3... c5 {[%clk 0:04:58]} 4. c3
{[%clk 0:04:52.8]} 4... Qb6 {[%clk 0:04:57.6]} 5. Nf3 {[%clk 0:04:52.1]} 5...
Nc6 {[%clk 0:04:57.2]} 6. a3 {[%clk 0:04:50]} 6... Bd7 {[%clk 0:04:56]} 7. b4
{[%clk 0:04:45.9]} 7... cxd4 {[%clk 0:04:55.5]} 8. cxd4 {[%clk 0:04:45.1]} 8...
Rc8 {[%clk 0:04:55.2]} 9. Bb2 {[%clk 0:04:42.6]} 9... Na5 {[%clk 0:04:54.4]} 10.
Nbd2 {[%clk 0:04:35.6]} 10... Nc4 {[%clk 0:04:53.4]} 11. Bxc4 {[%clk 0:04:32.6]}
11... dxc4 {[%clk 0:04:53.3]} 12. Bc3 {[%clk 0:04:29.7]} 12... Qa6 {[%clk
0:04:48.6]} 13. O-O {[%clk 0:04:27.4]} 13... Bc6 {[%clk 0:04:47.8]} 14. Qe2
{[%clk 0:04:22.1]} 14... b5 {[%clk 0:04:46.3]} 15. Ne4 {[%clk 0:04:18.1]} 15...
Nh6 {[%clk 0:04:45]} 16. Nc5 {[%clk 0:04:11]} 16... Bxc5 {[%clk 0:04:43.7]} 17.
dxc5 {[%clk 0:04:07.8]} 17... Nf5 {[%clk 0:04:38.4]} 18. Ng5 {[%clk 0:03:52.5]}
18... Qb7 {[%clk 0:04:27]} 19. Qh5 {[%clk 0:03:43.2]} 19... Bxg2 {[%clk
0:04:05.3]} 20. Nxf7 {[%clk 0:03:24.8]} 20... Qxf7 {[%clk 0:04:01.4]} 21. Qxf7+
{[%clk 0:03:21.2]} 21... Kxf7 {[%clk 0:04:01.3]} 22. Kxg2 {[%clk 0:03:20.7]}
22... Ne7 {[%clk 0:03:56.8]} 23. a4 {[%clk 0:03:16.5]} 23... Nd5 {[%clk
0:03:55.4]} 24. Rfc1 {[%clk 0:03:13.5]} 24... a6 {[%clk 0:03:42.3]} 25. axb5
{[%clk 0:03:12.3]} 25... axb5 {[%clk 0:03:42.2]} 26. Ra5 {[%clk 0:03:04.8]}
26... Rb8 {[%clk 0:03:38.6]} 27. Ra7+ {[%clk 0:03:02]} 27... Kg6 {[%clk
0:03:37.7]} 28. Kf3 {[%clk 0:02:57]} 28... Rhf8+ {[%clk 0:03:33.7]} 29. Ke2
{[%clk 0:02:55.6]} 29... Nf4+ {[%clk 0:03:31.9]} 30. Ke3 {[%clk 0:02:49]} 30...
Nd5+ {[%clk 0:03:20.7]} 31. Kd2 {[%clk 0:02:47.8]} 31... Rxf2+ {[%clk
0:03:18.7]} 32. Ke1 {[%clk 0:02:42.4]} 32... Rxh2 {[%clk 0:03:17.5]} 0-1

[Event "Live Chess"]
[Site "Chess.com"]
[Date "2024.06.02"]
[Round "-"]
[White "MaximKovalenko83"]
[Black "silunn"]
[Result "1/2-1/2"]
[WhiteElo "2180"]
[BlackElo "2179"]
[TimeControl "300"]
[EndTime "3:37:26 PDT"]
[Termination "Game drawn by repetition"]

1. d4 {[%clk 0:04:58]} 1... e6 {[%clk 0:04:59.9]} 2. Nf3 {[%clk 0:04:56.6]} 2...
d5 {[%clk 0:04:59.5]} 3. c4 {[%clk 0:04:54.5]} 3... Nf6 {[%clk 0:04:58.6]} 4.
Nc3 {[%clk 0:04:53.3]} 4... Be7 {[%clk 0:04:58.2]} 5. Bf4 {[%clk 0:04:51.9]}
5... O-O {[%clk 0:04:56.5]} 6. e3 {[%clk 0:04:50.8]} 6... c5 {[%clk 0:04:52]} 7.
cxd5 {[%clk 0:04:49.5]} 7... Nxd5 {[%clk 0:04:45.7]} 8. Nxd5 {[%clk 0:04:46.7]}
8... Qxd5 {[%clk 0:04:44.3]} 9. Be2 {[%clk 0:04:46]} 9... Nc6 {[%clk 0:04:42.8]}
10. O-O {[%clk 0:04:44.5]} 10... cxd4 {[%clk 0:04:41.9]} 11. Nxd4 {[%clk
0:04:43.3]} 11... Nxd4 {[%clk 0:04:33.5]} 12. exd4 {[%clk 0:04:43.2]} 12... Bf6
{[%clk 0:04:30.7]} 13. Be3 {[%clk 0:04:39.1]} 13... Rd8 {[%clk 0:04:27.9]} 14.
Bf3 {[%clk 0:04:38.2]} 14... Qb5 {[%clk 0:04:24.7]} 15. Qd2 {[%clk 0:04:31.4]}
15... Bd7 {[%clk 0:04:20.2]} 16. a4 {[%clk 0:04:25]} 16... Qf5 {[%clk
0:03:55.8]} 17. Bxb7 {[%clk 0:04:20.4]} 17... Rab8 {[%clk 0:03:50.8]} 18. Ba6
{[%clk 0:04:12.7]} 18... Bc6 {[%clk 0:03:44.9]} 19. Rad1 {[%clk 0:04:04.8]}
19... Bxg2 {[%clk 0:03:37.5]} 20. Kxg2 {[%clk 0:04:00]} 20... Qg4+ {[%clk
0:03:36.4]} 21. Kh1 {[%clk 0:03:59.3]} 21... Qf3+ {[%clk 0:03:35.6]} 22. Kg1
{[%clk 0:03:58.7]} 22... Qg4+ {[%clk 0:03:31.8]} 23. Kh1 {[%clk 0:03:58]} 23...
Qf3+ {[%clk 0:03:30.9]} 24. Kg1 {[%clk 0:03:57.3]} 24... Qg4+ {[%clk 0:03:30.4]}
25. Kh1 {[%clk 0:03:56.9]} 1/2-1/2

[Event "Live Chess"]
[Site "Chess.com"]
[Date "2024.06.02"]
[Round "-"]
[White "Brooms1989"]
[Black "WeakOldFinished"]
[Result "0-1"]
[WhiteElo "1238"]
[BlackElo "2174"]
[TimeControl "300"]
[EndTime "3:37:27 PDT"]
[Termination "WeakOldFinished won by resignation"]

1. e4 {[%clk 0:04:57.6]} 1... d5 {[%clk 0:04:58.4]} 2. exd5 {[%clk 0:04:56]}
2... Qxd5 {[%clk 0:04:56.1]} 3. d4 {[%clk 0:04:54.7]} 3... e5 {[%clk 0:04:54.7]}
4. dxe5 {[%clk 0:04:43.1]} 4... Qxd1+ {[%clk 0:04:53.1]} 5. Kxd1 {[%clk
0:04:43]} 5... Nc6 {[%clk 0:04:52.3]} 6. Nf3 {[%clk 0:04:41.2]} 6... Bg4 {[%clk
0:04:50.4]} 7. Be2 {[%clk 0:04:39.9]} 7... O-O-O+ {[%clk 0:04:49.1]} 8. Ke1
{[%clk 0:04:38.5]} 8... Bxf3 {[%clk 0:04:47.2]} 9. Bxf3 {[%clk 0:04:36.9]} 9...
Nxe5 {[%clk 0:04:46.9]} 10. Ke2 {[%clk 0:04:30.2]} 10... Nf6 {[%clk 0:04:42.5]}
11. Bg5 {[%clk 0:04:24.4]} 11... Be7 {[%clk 0:04:38.6]} 12. Re1 {[%clk
0:04:22.3]} 12... h6 {[%clk 0:04:36.9]} 13. Be3 {[%clk 0:04:18.9]} 13... Bb4
{[%clk 0:04:31.5]} 14. Rd1 {[%clk 0:04:11.1]} 14... Rxd1 {[%clk 0:04:28]} 15.
Kxd1 {[%clk 0:04:11]} 15... Nxf3 {[%clk 0:04:27.2]} 16. gxf3 {[%clk 0:04:09.7]}
16... Rd8+ {[%clk 0:04:23.5]} 17. Ke2 {[%clk 0:04:07.2]} 17... Nd5 {[%clk
0:04:17.5]} 18. c3 {[%clk 0:04:00.6]} 18... Ba5 {[%clk 0:04:16]} 19. Nd2 {[%clk
0:03:58.5]} 19... Bb6 {[%clk 0:04:13.7]} 20. Bxb6 {[%clk 0:03:56.1]} 20... axb6
{[%clk 0:04:11.4]} 21. Rd1 {[%clk 0:03:55.3]} 21... Nf4+ {[%clk 0:04:07.9]} 22.
Ke3 {[%clk 0:03:51.9]} 22... g5 {[%clk 0:04:04.3]} 23. Ne4 {[%clk 0:03:48.8]}
23... Rxd1 {[%clk 0:04:02.6]} 0-1

[Event "Live Chess"]
[Site "Chess.com"]
[Date "2024.06.02"]
[Round "-"]
[White "matt1979"]
[Black "Eva3337"]
[Result "1/2-1/2"]
[WhiteElo "1409"]
[BlackElo "1174"]
[TimeControl "300"]
[EndTime "3:37:40 PDT"]
[Termination "Game drawn by stalemate"]

1. f4 {[%clk 0:04:57.8]} 1... Nc6 {[%clk 0:04:58]} 2. Nf3 {[%clk 0:04:56.3]}
2... d6 {[%clk 0:04:52.5]} 3. e4 {[%clk 0:04:52.3]} 3... e5 {[%clk 0:04:44.9]}
4. f5 {[%clk 0:04:51.1]} 4... Nf6 {[%clk 0:04:32.9]} 5. Nc3 {[%clk 0:04:47.9]}
5... d5 {[%clk 0:04:27.1]} 6. d3 {[%clk 0:04:42.4]} 6... d4 {[%clk 0:04:24.2]}
7. Nb1 {[%clk 0:04:35.8]} 7... g6 {[%clk 0:04:09.4]} 8. fxg6 {[%clk 0:04:30.5]}
8... fxg6 {[%clk 0:04:07.4]} 9. Bg5 {[%clk 0:04:28.6]} 9... Be7 {[%clk
0:04:04.4]} 10. Be2 {[%clk 0:04:12.7]} 10... O-O {[%clk 0:04:02.1]} 11. O-O
{[%clk 0:04:09.1]} 11... Nh5 {[%clk 0:03:50.1]} 12. Bxe7 {[%clk 0:04:01.9]}
12... Qxe7 {[%clk 0:03:48.1]} 13. Qe1 {[%clk 0:03:57.5]} 13... Nf4 {[%clk
0:03:45.9]} 14. Nbd2 {[%clk 0:03:51.6]} 14... Nxe2+ {[%clk 0:03:41.5]} 15. Qxe2
{[%clk 0:03:50.2]} 15... Bg4 {[%clk 0:03:39.1]} 16. h3 {[%clk 0:03:46.4]} 16...
Bxf3 {[%clk 0:03:14.6]} 17. Nxf3 {[%clk 0:03:42.6]} 17... Rf4 {[%clk 0:03:06.7]}
18. g3 {[%clk 0:03:32.4]} 18... Rf6 {[%clk 0:03:02.5]} 19. Kg2 {[%clk
0:03:29.9]} 19... Raf8 {[%clk 0:03:00.6]} 20. Nh4 {[%clk 0:03:21.8]} 20... Rxf1
{[%clk 0:02:30.5]} 21. Rxf1 {[%clk 0:03:20.2]} 21... Rxf1 {[%clk 0:02:30]} 22.
Qxf1 {[%clk 0:03:19.4]} 22... Kg7 {[%clk 0:02:23.9]} 23. Qe2 {[%clk 0:03:06.1]}
23... Qg5 {[%clk 0:02:13.5]} 24. Nf3 {[%clk 0:02:57.5]} 24... Qf6 {[%clk
0:02:02.4]} 25. Qf2 {[%clk 0:02:45.7]} 25... Qe6 {[%clk 0:01:39.1]} 26. a3
{[%clk 0:02:41.6]} 26... Qa2 {[%clk 0:01:33.9]} 27. Ng5 {[%clk 0:02:28.4]} 27...
h6 {[%clk 0:01:25]} 28. Qf7+ {[%clk 0:02:20.9]} 28... Qxf7 {[%clk 0:01:22.6]}
29. Nxf7 {[%clk 0:02:17.5]} 29... Kxf7 {[%clk 0:01:22.5]} 30. Kf3 {[%clk
0:02:16.6]} 30... Kf6 {[%clk 0:01:19.8]} 31. g4 {[%clk 0:02:14.3]} 31... g5
{[%clk 0:01:17.8]} 32. Kg3 {[%clk 0:02:12.6]} 32... b5 {[%clk 0:01:08.2]} 33.
Kf3 {[%clk 0:02:11]} 33... Na5 {[%clk 0:01:05.4]} 34. Kg3 {[%clk 0:02:07.4]}
34... c5 {[%clk 0:01:04]} 35. Kf3 {[%clk 0:02:06.2]} 35... Nc6 {[%clk
0:01:02.3]} 36. Kg3 {[%clk 0:02:05.2]} 36... a5 {[%clk 0:01:00.7]} 37. Kf3
{[%clk 0:02:04.1]} 37... b4 {[%clk 0:00:58.8]} 38. a4 {[%clk 0:02:00.9]} 38...
Ke6 {[%clk 0:00:52.6]} 39. b3 {[%clk 0:01:59.8]} 39... Ne7 {[%clk 0:00:45.6]}
40. Kg3 {[%clk 0:01:58.5]} 40... Ng6 {[%clk 0:00:43.9]} 41. Kf3 {[%clk
0:01:53.5]} 41... Nf4 {[%clk 0:00:42.1]} 42. Kg3 {[%clk 0:01:52.6]} 42... Ne2+
{[%clk 0:00:40]} 43. Kf3 {[%clk 0:01:49.5]} 43... Nc1 {[%clk 0:00:36]} 44. Kf2
{[%clk 0:01:42.5]} 44... Na2 {[%clk 0:00:32.9]} 45. Ke2 {[%clk 0:01:37.6]} 45...
Nc3+ {[%clk 0:00:31.4]} 46. Kd2 {[%clk 0:01:34.7]} 46... Nd5 {[%clk 0:00:20.1]}
47. exd5+ {[%clk 0:01:32.2]} 47... Kxd5 {[%clk 0:00:19.1]} 48. Ke2 {[%clk
0:01:30.3]} 48... e4 {[%clk 0:00:17]} 49. dxe4+ {[%clk 0:01:28.8]} 49... Kxe4
{[%clk 0:00:16]} 50. Kf2 {[%clk 0:01:23.1]} 50... Kf4 {[%clk 0:00:14.3]} 51. Kg2
{[%clk 0:01:19]} 51... Ke3 {[%clk 0:00:11.5]} 52. Kf1 {[%clk 0:01:17.6]} 52...
d3 {[%clk 0:00:09.8]} 53. cxd3 {[%clk 0:01:16.2]} 53... Kxd3 {[%clk 0:00:08.8]}
54. Ke1 {[%clk 0:01:14.8]} 54... Kc3 {[%clk 0:00:08.3]} 55. Kd1 {[%clk
0:01:13.9]} 55... Kxb3 {[%clk 0:00:08]} 56. Kc1 {[%clk 0:01:13.3]} 56... Kxa4
{[%clk 0:00:07.6]} 57. Kb2 {[%clk 0:01:12.2]} 57... b3 {[%clk 0:00:07.5]} 58.
Kb1 {[%clk 0:01:11]} 58... c4 {[%clk 0:00:07.4]} 59. Kb2 {[%clk 0:01:09.2]}
59... c3+ {[%clk 0:00:07.3]} 60. Kxc3 {[%clk 0:01:08.2]} 60... Ka3 {[%clk
0:00:06.4]} 61. Kc4 {[%clk 0:01:04.7]} 61... Ka2 {[%clk 0:00:05.9]} 62. Kb5
{[%clk 0:01:02.8]} 62... b2 {[%clk 0:00:05.8]} 63. Kxa5 {[%clk 0:01:01.8]} 63...
b1=Q {[%clk 0:00:05.7]} 64. Ka6 {[%clk 0:01:00.6]} 64... Qb3 {[%clk 0:00:05.1]}
65. Ka7 {[%clk 0:00:59.7]} 65... Ka3 {[%clk 0:00:04.4]} 66. Ka6 {[%clk
0:00:58.8]} 66... Qb4 {[%clk 0:00:04.3]} 67. Ka7 {[%clk 0:00:58]} 67... Ka4
{[%clk 0:00:04.2]} 68. h4 {[%clk 0:00:57]} 68... Qb5 {[%clk 0:00:04.1]} 69. Ka8
{[%clk 0:00:56]} 69... Ka5 {[%clk 0:00:04]} 70. h5 {[%clk 0:00:54.7]} 70... Qb6
{[%clk 0:00:03.9]} 1/2-1/2

[Event "Live Chess"]
[Site "Chess.com"]
[Date "2024.06.02"]
[Round "-"]
[White "karina55"]
[Black "LL220284LL"]
[Result "0-1"]
[WhiteElo "1850"]
[BlackElo "2508"]
[TimeControl "300"]
[EndTime "3:37:40 PDT"]
[Termination "LL220284LL won by resignation"]

1. e4 {[%clk 0:04:58.1]} 1... g6 {[%clk 0:04:57.7]} 2. d4 {[%clk 0:04:56.2]}
2... Bg7 {[%clk 0:04:57.1]} 3. Nc3 {[%clk 0:04:53.8]} 3... d6 {[%clk 0:04:56.4]}
4. f4 {[%clk 0:04:51.9]} 4... c6 {[%clk 0:04:55.7]} 5. Nf3 {[%clk 0:04:50.3]}
5... Nf6 {[%clk 0:04:52.8]} 6. a4 {[%clk 0:04:46.9]} 6... Bg4 {[%clk 0:04:49.3]}
7. Be3 {[%clk 0:04:42.2]} 7... Nbd7 {[%clk 0:04:44]} 8. h3 {[%clk 0:04:37.3]}
8... Bxf3 {[%clk 0:04:42.6]} 9. gxf3 {[%clk 0:04:30.3]} 9... e5 {[%clk 0:04:42]}
10. fxe5 {[%clk 0:04:23.7]} 10... dxe5 {[%clk 0:04:39.8]} 11. Qd2 {[%clk
0:04:12.4]} 11... O-O {[%clk 0:04:33.6]} 12. Bc4 {[%clk 0:04:06.6]} 12... exd4
{[%clk 0:04:24.4]} 13. Bxd4 {[%clk 0:04:04.5]} 13... Qc7 {[%clk 0:04:16.1]} 14.
Kf2 {[%clk 0:03:53]} 14... Rad8 {[%clk 0:04:11.4]} 15. Qe3 {[%clk 0:03:39]}
15... Nb6 {[%clk 0:04:00.5]} 16. Bb3 {[%clk 0:03:30.4]} 16... Ng4+ {[%clk
0:03:57.4]} 17. hxg4 {[%clk 0:03:24.8]} 17... Bxd4 {[%clk 0:03:56]} 18. a5
{[%clk 0:03:14]} 18... Bxe3+ {[%clk 0:03:50.6]} 19. Kxe3 {[%clk 0:03:12.6]}
19... Nd7 {[%clk 0:03:43]} 20. Rh3 {[%clk 0:03:09.2]} 20... Nc5 {[%clk
0:03:36.1]} 21. Bc4 {[%clk 0:03:02.6]} 21... Ne6 {[%clk 0:03:28.7]} 22. Ne2
{[%clk 0:02:51.4]} 22... Qe5 {[%clk 0:03:25.4]} 23. Rah1 {[%clk 0:02:38]} 23...
Qc5+ {[%clk 0:03:23]} 0-1

[Event "Live Chess"]
[Site "Chess.com"]
[Date "2024.06.02"]
[Round "-"]
[White "booktrunk"]
[Black "yarek"]
[Result "0-1"]
[WhiteElo "1497"]
[BlackElo "1759"]
[TimeControl "300"]
[EndTime "3:37:51 PDT"]
[Termination "yarek won by resignation"]

1. d4 {[%clk 0:04:56.5]} 1... g6 {[%clk 0:04:58.8]} 2. Nc3 {[%clk 0:04:51.6]}
2... Bg7 {[%clk 0:04:51.4]} 3. Bf4 {[%clk 0:04:44.5]} 3... d6 {[%clk 0:04:48.9]}
4. e4 {[%clk 0:04:42.2]} 4... c6 {[%clk 0:04:43.4]} 5. Nf3 {[%clk 0:04:37.5]}
5... Bg4 {[%clk 0:04:40.4]} 6. Be2 {[%clk 0:04:35.3]} 6... Nf6 {[%clk
0:04:37.3]} 7. h3 {[%clk 0:04:32.6]} 7... Bxf3 {[%clk 0:04:35.3]} 8. Bxf3 {[%clk
0:04:31.1]} 8... Nbd7 {[%clk 0:04:27.7]} 9. O-O {[%clk 0:04:29.7]} 9... O-O
{[%clk 0:04:25.5]} 10. Rb1 {[%clk 0:04:25.1]} 10... e5 {[%clk 0:04:23.4]} 11.
dxe5 {[%clk 0:04:23.3]} 11... dxe5 {[%clk 0:04:22.4]} 12. Bg3 {[%clk 0:04:21.3]}
12... Qc7 {[%clk 0:04:14.5]} 13. Qd2 {[%clk 0:04:15.3]} 13... Rad8 {[%clk
0:04:11.8]} 14. Rbd1 {[%clk 0:04:13.7]} 14... Nc5 {[%clk 0:04:04.9]} 15. Qc1
{[%clk 0:04:09]} 15... b5 {[%clk 0:03:55.3]} 16. Rxd8 {[%clk 0:04:03.7]} 16...
Rxd8 {[%clk 0:03:53.2]} 17. Rd1 {[%clk 0:04:01.9]} 17... Rxd1+ {[%clk
0:03:42.6]} 18. Qxd1 {[%clk 0:04:00]} 18... Bh6 {[%clk 0:03:41.9]} 19. a3 {[%clk
0:03:52.4]} 19... a5 {[%clk 0:03:38.2]} 20. Bh4 {[%clk 0:03:46.7]} 20... Nfd7
{[%clk 0:03:28.7]} 21. Be7 {[%clk 0:03:39]} 21... b4 {[%clk 0:03:19.2]} 22. axb4
{[%clk 0:03:36.8]} 22... axb4 {[%clk 0:03:17.2]} 23. Bd6 {[%clk 0:03:28.6]}
23... Qb6 {[%clk 0:03:09.7]} 24. Ne2 {[%clk 0:03:24.1]} 24... Nf6 {[%clk
0:02:57.5]} 25. Be7 {[%clk 0:03:19.5]} 25... Nfxe4 {[%clk 0:02:52.5]} 26. Bd8
{[%clk 0:03:00.3]} 26... Qa7 {[%clk 0:02:44.8]} 27. Bxe4 {[%clk 0:02:55.1]}
27... Nxe4 {[%clk 0:02:43]} 28. Qe1 {[%clk 0:02:39.1]} 28... Bd2 {[%clk
0:02:38.1]} 29. Qf1 {[%clk 0:02:37]} 29... Nxf2 {[%clk 0:02:27.1]} 30. Kh2
{[%clk 0:02:33.2]} 30... Ne4 {[%clk 0:02:19.7]} 31. Ng3 {[%clk 0:02:26.2]} 31...
Bf4 {[%clk 0:02:15.3]} 32. Bh4 {[%clk 0:02:18]} 32... g5 {[%clk 0:02:09.1]} 33.
Bxg5 {[%clk 0:02:11.2]} 33... Nxg5 {[%clk 0:02:08.8]} 34. h4 {[%clk 0:02:08.5]}
34... Ne4 {[%clk 0:02:07.3]} 35. Kh3 {[%clk 0:02:06.2]} 35... Qd7+ {[%clk
0:02:02.7]} 0-1

[Event "Live Chess"]
[Site "Chess.com"]
[Date "2024.06.02"]
[Round "-"]
[White "WilliamofOrange16th"]
[Black "Ziipyyy"]
[Result "1-0"]
[WhiteElo "1994"]
[BlackElo "1300"]
[TimeControl "300"]
[EndTime "3:37:52 PDT"]
[Termination "WilliamofOrange16th won by checkmate"]

1. e4 {[%clk 0:04:58.6]} 1... c6 {[%clk 0:04:58.5]} 2. d4 {[%clk 0:04:57.1]}
2... d5 {[%clk 0:04:58.2]} 3. exd5 {[%clk 0:04:57]} 3... cxd5 {[%clk 0:04:58.1]}
4. c4 {[%clk 0:04:56.5]} 4... Nf6 {[%clk 0:04:56.6]} 5. Nc3 {[%clk 0:04:53.6]}
5... Be6 {[%clk 0:04:55.9]} 6. c5 {[%clk 0:04:52.4]} 6... Nc6 {[%clk 0:04:53.8]}
7. Nf3 {[%clk 0:04:49.7]} 7... g6 {[%clk 0:04:49.6]} 8. Bf4 {[%clk 0:04:44.6]}
8... Bg4 {[%clk 0:04:40]} 9. Bb5 {[%clk 0:04:40.9]} 9... Qd7 {[%clk 0:04:31.1]}
10. Qd3 {[%clk 0:04:36.3]} 10... a6 {[%clk 0:04:22.9]} 11. Ne5 {[%clk
0:04:27.1]} 11... Bf5 {[%clk 0:03:56.3]} 12. Nxd7 {[%clk 0:04:21.2]} 12... Bxd3
{[%clk 0:03:48.7]} 13. Nxf6+ {[%clk 0:04:19.7]} 13... exf6 {[%clk 0:03:44.8]}
14. Bxd3 {[%clk 0:04:19.6]} 14... Nxd4 {[%clk 0:03:43.3]} 15. Nxd5 {[%clk
0:04:14]} 15... O-O-O {[%clk 0:03:40.3]} 16. Nb6# {[%clk 0:04:10.4]} 1-0

[Event "Live Chess"]
[Site "Chess.com"]
[Date "2024.06.02"]
[Round "-"]
[White "JohanKjeldahl"]
[Black "dmitro74"]
[Result "1/2-1/2"]
[WhiteElo "1796"]
[BlackElo "1726"]
[TimeControl "300"]
[EndTime "3:38:24 PDT"]
[Termination "Game drawn by repetition"]

1. e4 {[%clk 0:04:56.9]} 1... e6 {[%clk 0:04:58.8]} 2. d4 {[%clk 0:04:55.8]}
2... d5 {[%clk 0:04:57.7]} 3. Nd2 {[%clk 0:04:55.4]} 3... dxe4 {[%clk
0:04:56.4]} 4. Nxe4 {[%clk 0:04:54]} 4... Nd7 {[%clk 0:04:55.7]} 5. Nf3 {[%clk
0:04:52.4]} 5... Ngf6 {[%clk 0:04:54.3]} 6. Bd3 {[%clk 0:04:51.5]} 6... Nxe4
{[%clk 0:04:51.5]} 7. Bxe4 {[%clk 0:04:50]} 7... Nf6 {[%clk 0:04:50.9]} 8. Bd3
{[%clk 0:04:48.6]} 8... c5 {[%clk 0:04:48.6]} 9. Be3 {[%clk 0:04:44]} 9... cxd4
{[%clk 0:04:45.3]} 10. Bxd4 {[%clk 0:04:42.5]} 10... Be7 {[%clk 0:04:44.6]} 11.
c3 {[%clk 0:04:41.4]} 11... O-O {[%clk 0:04:42.8]} 12. O-O {[%clk 0:04:40.1]}
12... b6 {[%clk 0:04:37.8]} 13. Bxf6 {[%clk 0:04:33.7]} 13... Bxf6 {[%clk
0:04:35.7]} 14. Be4 {[%clk 0:04:32.8]} 14... Rb8 {[%clk 0:04:31.6]} 15. Qc2
{[%clk 0:04:30.4]} 15... g6 {[%clk 0:04:27.9]} 16. Rad1 {[%clk 0:04:28.3]} 16...
Qe7 {[%clk 0:04:25.4]} 17. Nd4 {[%clk 0:04:26.3]} 17... Ba6 {[%clk 0:04:20.5]}
18. Nc6 {[%clk 0:04:22.1]} 18... Qc7 {[%clk 0:03:48.4]} 19. Nxb8 {[%clk
0:04:11.3]} 19... Bxf1 {[%clk 0:03:46.3]} 20. Kxf1 {[%clk 0:04:09.4]} 20... Rxb8
{[%clk 0:03:42]} 21. g3 {[%clk 0:04:02.4]} 21... Rd8 {[%clk 0:03:39.4]} 22.
Rxd8+ {[%clk 0:03:56.3]} 22... Bxd8 {[%clk 0:03:37.5]} 23. Qa4 {[%clk
0:03:54.3]} 23... Qe7 {[%clk 0:03:33.5]} 24. Ke2 {[%clk 0:03:50]} 24... f5
{[%clk 0:03:31.3]} 25. Bd3 {[%clk 0:03:45.7]} 25... Kg7 {[%clk 0:03:23.4]} 26.
Qd4+ {[%clk 0:03:41.7]} 26... e5 {[%clk 0:03:18.8]} 27. Qd5 {[%clk 0:03:40.7]}
27... Bc7 {[%clk 0:03:05.8]} 28. Bc4 {[%clk 0:03:39]} 28... Bd6 {[%clk
0:02:32.3]} 29. Qg8+ {[%clk 0:03:35.1]} 29... Kh6 {[%clk 0:02:31]} 30. h4 {[%clk
0:03:32]} 30... Qf8 {[%clk 0:02:28.1]} 31. Qd5 {[%clk 0:03:27.8]} 31... a5
{[%clk 0:02:13.2]} 32. a3 {[%clk 0:03:23.4]} 32... Bc5 {[%clk 0:02:01.1]} 33. b4
{[%clk 0:03:20.7]} 33... axb4 {[%clk 0:01:59.8]} 34. axb4 {[%clk 0:03:19.5]}
34... Be7 {[%clk 0:01:53.5]} 35. Qe6 {[%clk 0:03:13.5]} 35... e4 {[%clk
0:01:49.1]} 36. Qxb6 {[%clk 0:03:10.3]} 36... Qc8 {[%clk 0:01:30.6]} 37. Qe3+
{[%clk 0:03:02.8]} 37... Kg7 {[%clk 0:01:27.2]} 38. Bd5 {[%clk 0:02:58.9]} 38...
Qa6+ {[%clk 0:01:18.9]} 39. Kd2 {[%clk 0:02:54.2]} 39... Qa1 {[%clk 0:01:06]}
40. Bb3 {[%clk 0:02:50.3]} 40... Bf6 {[%clk 0:00:46.5]} 41. Bc2 {[%clk
0:02:48.4]} 41... Qa8 {[%clk 0:00:32.8]} 42. b5 {[%clk 0:02:44.3]} 42... Qd5+
{[%clk 0:00:28.5]} 43. Kc1 {[%clk 0:02:32.5]} 43... Qxb5 {[%clk 0:00:27.7]} 44.
Kd2 {[%clk 0:02:12.3]} 44... Qd5+ {[%clk 0:00:25.8]} 45. Kc1 {[%clk 0:02:11.1]}
45... Qc4 {[%clk 0:00:25.1]} 46. Kd2 {[%clk 0:02:09.4]} 46... Qd5+ {[%clk
0:00:22.7]} 47. Kc1 {[%clk 0:02:06.8]} 47... Qc4 {[%clk 0:00:22]} 48. Kd2 {[%clk
0:02:06]} 48... Qd5+ {[%clk 0:00:21]} 1/2-1/2

[Event "Live Chess"]
[Site "Chess.com"]
[Date "2024.06.02"]
[Round "-"]
[White "KeithArkell"]
[Black "oscalik"]
[Result "1-0"]
[WhiteElo "2409"]
[BlackElo "2240"]
[TimeControl "300"]
[EndTime "3:38:52 PDT"]
[Termination "KeithArkell won - game abandoned"]

1. d4 {[%clk 0:04:56.8]} 1... Nf6 {[%clk 0:04:58.3]} 2. Nf3 {[%clk 0:04:56.2]}
2... g6 {[%clk 0:04:56.1]} 3. c4 {[%clk 0:04:55.4]} 3... d6 {[%clk 0:04:55.3]}
4. g3 {[%clk 0:04:52.7]} 4... Bg7 {[%clk 0:04:53.2]} 5. Bg2 {[%clk 0:04:50.7]}
5... O-O {[%clk 0:04:52]} 6. O-O {[%clk 0:04:48.6]} 6... c5 {[%clk 0:04:47.3]}
7. dxc5 {[%clk 0:04:44.7]} 7... dxc5 {[%clk 0:04:46.2]} 8. Nc3 {[%clk
0:04:43.7]} 8... Nc6 {[%clk 0:04:45.1]} 9. Bf4 {[%clk 0:04:42.5]} 9... Qb6
{[%clk 0:04:37.3]} 10. b3 {[%clk 0:04:31.5]} 10... Nh5 {[%clk 0:04:35.5]} 11.
Nd5 {[%clk 0:04:29.7]} 11... Qa5 {[%clk 0:04:26.2]} 12. Bd2 {[%clk 0:04:27.3]}
12... Qd8 {[%clk 0:04:20.2]} 13. Bc3 {[%clk 0:04:25.4]} 13... Nf6 {[%clk
0:04:07.3]} 14. Nxf6+ {[%clk 0:04:23.7]} 14... exf6 {[%clk 0:04:06.6]} 15. Qxd8
{[%clk 0:04:21.8]} 15... Rxd8 {[%clk 0:04:05.4]} 16. Rfd1 {[%clk 0:04:21]} 16...
Be6 {[%clk 0:03:54.9]} 17. e3 {[%clk 0:04:17.5]} 17... a5 {[%clk 0:03:49.8]} 18.
a4 {[%clk 0:04:15.4]} 18... Nb4 {[%clk 0:03:46.2]} 19. Nd2 {[%clk 0:04:06.9]}
19... Rd3 {[%clk 0:03:26.4]} 20. Ne4 {[%clk 0:04:02.6]} 20... Rad8 {[%clk
0:03:22.8]} 21. Rxd3 {[%clk 0:04:01.7]} 21... Rxd3 {[%clk 0:03:20.3]} 22. Bxb4
{[%clk 0:03:59.6]} 22... cxb4 {[%clk 0:03:14.1]} 23. Nc5 {[%clk 0:03:58.2]} 1-0